fUSD/lending_fUSD_20251220
["ID","MTS","AMOUNT","RATE_DAILY","PERIOD"]
[399261827,1766215832851,-151.76,0.00013773,2]
[399261828,1766215832861,-151.26,0.00013773,2]
[399261829,1766215832870,-151.63,0.00013773,2]
[399261830,1766215832880,-150.74,0.00013773,2]
[399261831,1766215832889,-152.95,0.00013773,2]
[399261832,1766215832899,-151.78,0.00013773,2]
[399261833,1766215832909,-151.42,0.00013773,2]
[399261834,1766215832919,-151.98,0.00013773,2]
[399261835,1766215832928,-151.0,0.00013773,2]
[399261836,1766215832938,-151.77,0.00013773,2]
[399261837,1766215832948,-151.41,0.00013773,2]
[399261838,1766215832959,-227.57,0.00013773,2]
[399261839,1766215832968,-6397.14968005,0.00013793,2]
[399261840,1766215832982,-18329.51031995,0.00013793,2]
[399261841,1766215832991,-166.66,0.00013836,2]
[399261842,1766215833000,-500.0,0.00013843,2]
[399261843,1766215833010,-707.69,0.00013883,2]
[399261844,1766215833020,-200.0,0.00013911,2]
[399261845,1766215833029,-500.0,0.00013911,2]
[399261846,1766215833039,-151.0,0.00013911,2]
[399261847,1766215833049,-151.0,0.00013911,2]
[399261848,1766215833059,-200.0,0.00013911,2]
[399261849,1766215833069,-151.0,0.00013911,2]
[399261850,1766215833079,-151.0,0.00013911,2]
[399261851,1766215833089,-151.0,0.00013911,2]
[399261852,1766215833099,-500.0,0.00013911,2]
[399261853,1766215833109,-500.0,0.00013911,2]
[399261854,1766215833118,-151.0,0.00013911,2]
[399261855,1766215833128,-500.0,0.00013911,2]
[399261856,1766215833138,-151.0,0.00013911,2]
[399261857,1766215833151,-500.0,0.00013911,2]
[399261858,1766215833161,-151.0,0.00013911,2]
[399261859,1766215833171,-500.0,0.00013911,2]
[399261860,1766215833181,-151.0,0.00013911,2]
[399261861,1766215833190,-500.0,0.00013911,2]
[399261862,1766215833200,-151.0,0.00013911,2]
[399261863,1766215833210,-500.0,0.00013911,2]
[399261864,1766215833221,-500.0,0.00013911,2]
[399261865,1766215833231,-151.0,0.00013911,2]
[399261866,1766215833242,-500.0,0.00013911,2]
[399261867,1766215833251,-500.0,0.00013911,2]
[399261868,1766215833261,-151.0,0.00013911,2]
[399261869,1766215833272,-500.0,0.00013911,2]
[399261870,1766215833282,-500.0,0.00013911,2]
[399261871,1766215833292,-151.0,0.00013911,2]
[399261872,1766215833302,-500.0,0.00013911,2]
[399261873,1766215833312,-500.0,0.00013911,2]
[399261874,1766215833322,-151.0,0.00013911,2]
[399261875,1766215833332,-500.0,0.00013911,2]
[399261876,1766215833342,-151.0,0.00013911,2]
[399261877,1766215833357,-500.0,0.00013911,2]
[399261878,1766215833367,-500.0,0.00013911,2]
[399261879,1766215833378,-151.0,0.00013911,2]
[399261880,1766215833389,-500.0,0.00013911,2]
[399261881,1766215833399,-151.0,0.00013911,2]
[399261882,1766215833409,-500.0,0.00013911,2]
[399261883,1766215833420,-151.0,0.00013911,2]
[399261884,1766215833430,-500.0,0.00013911,2]
[399261885,1766215833440,-151.0,0.00013911,2]
[399261886,1766215833450,-500.0,0.00013911,2]
[399261887,1766215833461,-151.0,0.00013911,2]
[399261888,1766215833470,-500.0,0.00013911,2]
[399261889,1766215833480,-151.0,0.00013911,2]
[399261890,1766215833490,-151.0,0.00013911,2]
[399261891,1766215833500,-151.0,0.00013911,2]
[399261892,1766215833510,-151.0,0.00013911,2]
[399261893,1766215833520,-151.0,0.00013911,2]
[399261894,1766215833530,-151.0,0.00013911,2]
[399261895,1766215833544,-151.0,0.00013911,2]
[399261896,1766215833554,-151.0,0.00013911,2]
[399261897,1766215833564,-151.0,0.00013911,2]
[399261898,1766215833574,-151.0,0.00013911,2]
[399261899,1766215833584,-200.0,0.00013911,2]
[399261900,1766215833594,-151.0,0.00013911,2]
[399261901,1766215833604,-13722.89,0.0001392,2]
[399261902,1766215833613,-3259.12052185,0.00013954,2]
[399261903,1766215833623,-166.66,0.00013973,2]
[399261904,1766215833636,-227.57,0.00014047,2]
[399261905,1766215833646,-4238.97124718,0.00014091,2]
[399261906,1766215833656,-166.66,0.0001411,2]
[399261907,1766215833666,-1289.20251843,0.00014118,2]
[399261908,1766215833675,-420.0,0.0001419,2]
[399261909,1766215833685,-1680.0,0.00014233,2]
[399261910,1766215833695,-166.66,0.00014247,2]
[399261911,1766215833705,-1000.0,0.00014321,2]
[399261912,1766215833715,-1002.74001595,0.00014321,2]
[399261913,1766215833724,-500.31513524,0.00014321,2]
[399261914,1766215833734,-1000.0,0.00014321,2]
[399261915,1766215833747,-227.57,0.00014321,2]
[399261916,1766215833756,-3259.12052185,0.00014326,2]
[399261917,1766215833766,-5647.27,0.00014344,2]
[399261918,1766215833776,-166.66,0.00014384,2]
[399261919,1766215833786,-25503.86976938,0.00014385,2]
[399261920,1766215833814,-1242.16060208,0.00014385,2]
[399261921,1766215833827,-934.68962854,0.00014385,2]
[399261922,1766215833836,-4238.97124718,0.00014446,2]
[399261923,1766215833846,-200.0,0.00014459,2]
[399261924,1766215833855,-500.0,0.00014459,2]
[399261925,1766215833865,-200.0,0.00014459,2]
[399261926,1766215833874,-1289.20251843,0.00014581,2]
[399261927,1766215833884,-227.57,0.00014595,2]
[399261928,1766215833894,-3259.12052185,0.00014698,2]
[399261929,1766215833904,-500.0,0.00014785,2]
[399261930,1766215833916,-4238.97124718,0.00014801,2]
[399261931,1766215833927,-172.2,0.00014822,2]
[399261932,1766215833940,-227.58,0.00014868,2]
[399261933,1766215833949,-855.16426766,0.00014868,2]
[399261934,1766215833959,-1501.18432329,0.00014868,2]
[399261935,1766215833968,-1154.66111645,0.00015,2]
[399261936,1766215833978,-843.43549391,0.00015,2]
[399261937,1766215833989,-3767.42126143,0.00015,2]
[399261938,1766215834001,-3029.16790695,0.00015,2]
[399261939,1766215834012,-324.27327818,0.00015,2]
[399261940,1766215834023,-253.75974854,0.00015,2]
[399261948,1766215838570,-349.056,0.00015,2]
[399261949,1766215838583,-12883.83060216,0.00015,2]
[399261950,1766215838594,-3072.5011153,0.00015,2]
[399261951,1766215838603,-536.41802195,0.00015007,2]
[399261952,1766215838614,-249.0,0.00015007,2]
[399261953,1766215838624,-1289.20251843,0.00015045,2]
[399261954,1766215838634,-2451.97,0.00015062,2]
[399261955,1766215838645,-250.0,0.00015065,2]
[399261956,1766215838654,-3259.12052185,0.0001507,2]
[399261957,1766215838664,-4238.97124718,0.00015156,2]
[399261958,1766215838673,-1000.0,0.000153,2]
[399261959,1766215838683,-150.0,0.0001538,2]
[399261960,1766215838692,-505.81490245,0.000154,2]
[399261961,1766215838701,-3259.12052185,0.00015442,2]
[399261962,1766215838710,-1289.20251843,0.00015509,2]
[399261963,1766215838720,-4238.97124718,0.0001551,2]
[399261964,1766215838729,-587.0,0.00015563,2]
[399261965,1766215838739,-720.0,0.00015656,2]
[399261966,1766215838749,-246.05,0.00015695,2]
[399261967,1766215838758,-60970.58239615,0.000157,2]
[399261968,1766215838767,-2228.79457528,0.00015807,2]
[399261969,1766215838777,-3259.12052185,0.00015814,2]
[399261970,1766215838786,-1600.0,0.00015818,2]
[399261971,1766215838796,-4238.97124718,0.00015865,2]
[399261972,1766215838806,-158.81409509,0.000159,2]
[399261973,1766215838816,-172.2,0.00015962,2]
[399261974,1766215838826,-677.50615762,0.0001599,2]
[399261975,1766215838835,-151.0,0.00015997,2]
[399261976,1766215838845,-151.0,0.00015997,2]
[399261977,1766215838855,-251037.70267655,0.00016,2]
[399261978,1766215838865,-1798670.36203289,0.00016,4]
[399261979,1766215838874,-226.6675948,0.0001601,2]
[399261980,1766215838884,-181.47081457,0.0001601,2]
[399261981,1766215838894,-1193.89397566,0.0001601,2]
[399261982,1766215838904,-389.4856281,0.00016013,2]
[399261983,1766215838913,-150.34870908,0.00016037,2]
[399261984,1766215838923,-677.50615762,0.00016054,2]
[399261985,1766215838932,-151.0,0.00016061,2]
[399261986,1766215838942,-1000000.0,0.00016064,2]
[399261987,1766215838952,-337.46293072,0.00016137,2]
[399261988,1766215838962,-398.53152918,0.00016137,2]
[399261989,1766215838971,-5288.918,0.00016164,2]
[399261990,1766215838981,-319.108,0.00016169,2]
[399261991,1766215838991,-160.47,0.00016169,2]
[399261992,1766215839000,-3259.12052185,0.00016186,2]
[399261993,1766215839010,-9861.18998413,0.000162,5]
[399261994,1766215839019,-4238.97124718,0.0001622,2]
[399261995,1766215839029,-191.38735328,0.000163,2]
[399261996,1766215839039,-500.0,0.000163,2]
[399261997,1766215839254,-191.6701968,0.000163,2]
[399261998,1766215839264,-500.44010865,0.000163,2]
[399261999,1766215839273,-577.20648211,0.000163,2]
[399262000,1766215839282,-500.16141079,0.000163,2]
[399262001,1766215839292,-200.0,0.0001634,2]
[399262002,1766215839302,-500.0,0.00016438,2]
[399262003,1766215839312,-500.0,0.00016438,2]
[399262004,1766215839322,-500.0,0.00016438,2]
[399262005,1766215839331,-500.0,0.00016438,2]
[399262006,1766215839341,-500.0,0.00016438,2]
[399262007,1766215839351,-500.0,0.00016438,2]
[399262008,1766215839360,-500.0,0.00016438,2]
[399262009,1766215839370,-186.39322581,0.00016438,2]
[399262010,1766215839379,-500.0,0.00016438,2]
[399262011,1766215839389,-500.0,0.00016438,2]
[399262012,1766215839399,-500.0,0.00016438,2]
[399262013,1766215839409,-500.0,0.00016438,2]
[399262014,1766215839418,-500.0,0.00016438,2]
[399262015,1766215839428,-500.0,0.00016438,2]
[399262016,1766215839437,-500.0,0.00016438,2]
[399262017,1766215839446,-500.0,0.00016438,2]
[399262018,1766215839455,-592.36853989,0.00016438,2]
[399262019,1766215839465,-17209.38,0.00016438,2]
[399262020,1766215839474,-235.76832595,0.00016438,2]
[399262021,1766215839483,-164.42,0.0001644,2]
[399262022,1766215839493,-164.42,0.0001644,2]
[399262023,1766215839503,-164.42,0.0001644,2]
[399262024,1766215839512,-164.42,0.0001644,2]
[399262025,1766215839521,-164.42,0.0001644,2]
[399262026,1766215839530,-164.42,0.0001644,2]
[399262027,1766215839539,-164.42,0.0001644,2]
[399262028,1766215839550,-1002.15082385,0.00016532,2]
[399262029,1766215839559,-3259.12052185,0.00016558,2]
[399262030,1766215839568,-4238.97124718,0.00016575,2]
[399262031,1766215839578,-358.62936828,0.000166,2]
[399262032,1766215839587,-207.4,0.0001665,2]
[399262033,1766215839597,-18955.14602692,0.0001666,2]
[399262034,1766215839606,-500.0,0.00016685,2]
[399262035,1766215839615,-500.0,0.00016712,2]
[399262036,1766215839625,-500.0,0.00016712,2]
[399262037,1766215839635,-500.0,0.00016712,2]
[399262038,1766215839645,-500.0,0.00016712,2]
[399262039,1766215839654,-500.0,0.00016712,2]
[399262040,1766215839663,-500.0,0.00016712,2]
[399262041,1766215839673,-505.0,0.00016712,2]
[399262042,1766215839682,-150.0,0.00016712,2]
[399262043,1766215839691,-500.0,0.00016712,2]
[399262044,1766215839700,-644.0,0.00016712,2]
[399262045,1766215839709,-500.0,0.00016712,2]
[399262046,1766215839719,-878.0,0.00016813,2]
[399262047,1766215839728,-1001.82577211,0.00016848,2]
[399262048,1766215839737,-1000.0,0.00016848,2]
[399262049,1766215839746,-1000.0,0.00016848,2]
[399262050,1766215839756,-1000.0,0.00016848,2]
[399262051,1766215839765,-1000.0,0.00016848,2]
[399262052,1766215839774,-1000.0,0.00016848,2]
[399262053,1766215839783,-1000.0,0.00016848,2]
[399262054,1766215839793,-500.0,0.00016849,2]
[399262055,1766215839802,-500.0,0.00016849,2]
[399262056,1766215839812,-500.0,0.00016849,2]
[399262057,1766215839821,-500.0,0.00016849,2]
[399262058,1766215839833,-500.0,0.00016849,2]
[399262059,1766215839842,-500.0,0.00016849,2]
[399262060,1766215839851,-505.0,0.00016849,2]
[399262061,1766215839860,-500.0,0.00016849,2]
[399262062,1766215839870,-644.0,0.00016849,2]
[399262063,1766215839879,-500.0,0.00016849,2]
[399262064,1766215839888,-200.0,0.00016864,2]
[399262065,1766215839897,-171.68245536,0.00016887,2]
[399262066,1766215839906,-33491.4068,0.000169,2]
[399262067,1766215839916,-1000.0,0.000169,2]
[399262068,1766215839925,-1000.0,0.000169,2]
[399262069,1766215839934,-1000.0,0.000169,2]
[399262070,1766215839943,-794.454,0.000169,2]
[399262071,1766215839952,-878.0,0.00016908,2]
[399262072,1766215839962,-171.68245535,0.00016909,2]
[399262073,1766215839971,-171.68245535,0.0001693,2]
[399262074,1766215839980,-3259.12052185,0.0001693,2]
[399262075,1766215839989,-4238.97124718,0.0001693,2]
[399262076,1766215839999,-200.0,0.00016973,2]
[399262077,1766215840008,-500.0,0.00016986,2]
[399262078,1766215840017,-500.0,0.00016986,2]
[399262079,1766215840026,-500.0,0.00016986,2]
[399262080,1766215840035,-500.0,0.00016986,2]
[399262081,1766215840044,-500.0,0.00016986,2]
[399262082,1766215840054,-500.0,0.00016986,2]
[399262083,1766215840064,-505.0,0.00016986,2]
[399262084,1766215840074,-355.39654287,0.00016986,2]
[399262085,1766215840084,-644.0,0.00016986,2]
[399262086,1766215840093,-500.0,0.00016986,2]
[399262087,1766215840102,-438262.77,0.00016986,2]
[399262088,1766215840112,-878.0,0.00016987,2]
[399262089,1766215840122,-677.50615762,0.0001699,2]
[399262092,1766215840131,-151.0,0.00016996,2]
[399262094,1766215840140,-151.0,0.00016997,2]
[399262097,1766215840149,-152.67,0.00016999,2]
[399262098,1766215840158,-151.56,0.00016999,2]
[399262099,1766215840168,-197276.8934031,0.00016999,2]
[399262100,1766215840179,-500.0,0.00016999,2]
[399262101,1766215840189,-23859.3182936,0.00016999,2]
[399262102,1766215840200,-7684.9732266,0.00016999,2]
[399262103,1766215840210,-496515.74596377,0.00016999,3]
[399262104,1766215840219,-308.45911544,0.00016999,2]
[399262105,1766215840228,-151.0,0.00016999,2]
[399262106,1766215840237,-151.0,0.00016999,2]
[399262107,1766215840246,-151.0,0.00016999,2]
[399262108,1766215840256,-151.0,0.00016999,2]
[399262109,1766215840266,-151.0,0.00016999,2]
[399262110,1766215840277,-46018.75715158,0.00017,2]
[399262111,1766215840301,-1320.48682641,0.00017,2]
[399262112,1766215840355,-213.00186323,0.0001591,2]
[399262113,1766215840364,-292.60356606,0.00015973,2]
[399262114,1766215840376,-996.59895237,0.00015973,2]
[399262115,1766215840386,-213.0018632,0.00016108,2]
[399262116,1766215840396,-213.0018632,0.00016306,2]
[399262117,1766215840406,-213.0018632,0.00016504,2]
[399262118,1766215840416,-1003.89545799,0.00017,2]
[399262121,1766215846595,-974.9999998,0.00016436,2]
[399262122,1766215846606,-314.20251863,0.00016436,2]
[399262123,1766215846616,-213.0018632,0.00016702,2]
[399262124,1766215846625,-37.47434465,0.000169,2]
[399262125,1766215867006,1000.0,6.5e-05,2]
[399262234,1766216687047,-1000.0,0.00012368,2]
[399262235,1766216687077,-404.74,0.00012469,2]
[399262236,1766216687109,-192.49638971,0.00012692,2]
[399262237,1766216687138,-195.0,0.00012716,2]
[399262238,1766216687167,-195.0,0.00012741,2]
[399262239,1766216687196,-195.0,0.00012773,2]
[399262240,1766216687224,-250.0,0.00012792,2]
[399262241,1766216687253,-1200.0,0.00012795,2]
[399262242,1766216687281,-300.0,0.00012795,2]
[399262243,1766216687309,-1200.0,0.00012795,2]
[399262244,1766216687339,-9493.05346598,0.00012796,2]
[399262245,1766216687358,-1000.0,0.00012796,2]
[399262246,1766216687368,-404.74,0.00012796,2]
[399262247,1766216687379,-192.49638971,0.00012796,2]
[399262248,1766216687390,-195.0,0.00012796,2]
[399262249,1766216687402,-195.0,0.00012796,2]
[399262250,1766216687413,-195.0,0.00012796,2]
[399262251,1766216687424,-250.0,0.00012796,2]
[399262252,1766216687435,-1200.0,0.00012796,2]
[399262253,1766216687449,-300.0,0.00012796,2]
[399262254,1766216687460,-1200.0,0.00012796,2]
[399262255,1766216687472,-2924.23453336,0.00012796,2]
[399262256,1766216687481,-232.18548847,0.00012816,2]
[399262257,1766216687490,-999.99,0.00012816,2]
[399262258,1766216687499,-150.99,0.00012816,2]
[399262259,1766216687508,-150.99,0.00012816,2]
[399262260,1766216687517,-250.0,0.00012817,2]
[399262261,1766216687526,-4784.66344415,0.00012817,2]
[399262262,1766216687537,-5215.32655585,0.00012817,2]
[399262263,1766216687547,-1534.09373277,0.00012817,2]
[399262264,1766216725476,-300.0,0.00012816,2]
[399262265,1766216725504,-150.0,0.00012816,2]
[399262266,1766216725533,-250.0,0.00012817,2]
[399262267,1766216725561,-195.0,0.00012817,2]
[399262268,1766216725589,-8465.89626723,0.00012817,2]
[399262269,1766216725618,-4495.59,0.00012817,2]
[399262270,1766216725658,-3287.03746554,0.00012817,2]
[399262294,1766216939929,999.0,0.00013223,3]
[399262295,1766216983074,150.0,0.00023,120]
[399262314,1766217032406,-500.0,0.00012268,2]
[399262315,1766217032415,-250.0,0.00012268,2]
[399262317,1766217032425,-151.0,0.00012693,2]
[399262319,1766217032435,-166.55916846,0.00012695,2]
[399262321,1766217032444,-367.67707606,0.00012695,2]
[399262322,1766217032454,-167.05245565,0.00012695,2]
[399262325,1766217032468,-300.0,0.00012695,2]
[399262327,1766217032478,-26247.7051475,0.00012696,2]
[399262329,1766217032491,-5378.53161582,0.00012696,2]
[399262331,1766217032502,-866.75342885,0.00012696,2]
[399262335,1766217032694,-485.01153519,0.00012696,2]
[399262336,1766217032706,-1046.51182598,0.00012696,2]
[399262344,1766217038263,-29389.6455311,0.00012696,2]
[399262354,1766217038397,-936585.84091556,0.00012696,2]
[399262355,1766217038407,-315.69,0.00012723,2]
[399262356,1766217038416,-1500.0,0.00012769,2]
[399262357,1766217038426,-2500.0,0.00012789,2]
[399262358,1766217038435,-6712.95253446,0.00012817,2]
[399262359,1766217038444,-244.66670765,0.00012831,2]
[399262360,1766217038454,-195.0,0.00012844,2]
[399262361,1766217038463,-150.0,0.00012852,2]
[399262362,1766217038472,-319.108,0.00012853,2]
[399262363,1766217038481,-5457.72,0.00012853,2]
[399262364,1766217038490,-9999.99,0.00012853,2]
[399262365,1766217038500,-9999.99,0.00012853,2]
[399262366,1766217038509,-29575.23,0.00012854,2]
[399262367,1766217038518,-500.0,0.00012881,2]
[399262368,1766217038527,-500.0,0.00012881,2]
[399262369,1766217038536,-500.0,0.00012881,2]
[399262370,1766217038546,-500.0,0.00012881,2]
[399262371,1766217038558,-500.0,0.00012881,2]
[399262373,1766217038567,-500.0,0.00012881,2]
[399262375,1766217038576,-500.0,0.00012881,2]
[399262377,1766217038586,-500.0,0.00012881,2]
[399262378,1766217038594,-500.0,0.00012881,2]
[399262379,1766217038604,-500.0,0.00012881,2]
[399262380,1766217038613,-500.0,0.00012881,2]
[399262381,1766217038622,-500.0,0.00012881,2]
[399262382,1766217038632,-500.0,0.00012881,2]
[399262383,1766217038642,-500.0,0.00012881,2]
[399262384,1766217038651,-500.0,0.00012881,2]
[399262385,1766217038660,-500.0,0.00012881,2]
[399262386,1766217038670,-200.0,0.00012881,2]
[399262387,1766217038950,-500.0,0.00012881,2]
[399262388,1766217038962,-200.0,0.00012881,2]
[399262389,1766217038971,-500.0,0.00012881,2]
[399262390,1766217038980,-500.0,0.00012881,2]
[399262391,1766217038990,-500.0,0.00012881,2]
[399262392,1766217038999,-500.0,0.00012881,2]
[399262393,1766217039008,-500.0,0.00012881,2]
[399262394,1766217039017,-151.0,0.00012881,2]
[399262395,1766217039026,-200.0,0.00012881,2]
[399262396,1766217039036,-151.0,0.00012881,2]
[399262397,1766217039045,-151.0,0.00012881,2]
[399262398,1766217039055,-151.0,0.00012881,2]
[399262399,1766217039064,-151.0,0.00012881,2]
[399262400,1766217039074,-151.0,0.00012881,2]
[399262401,1766217039083,-151.0,0.00012881,2]
[399262402,1766217039093,-151.0,0.00012881,2]
[399262403,1766217039102,-151.0,0.00012881,2]
[399262404,1766217039111,-151.0,0.00012881,2]
[399262405,1766217039121,-202.61910419,0.00012881,2]
[399262406,1766217039130,-500.0,0.00012881,2]
[399262407,1766217039140,-151.0,0.00012881,2]
[399262408,1766217039149,-151.0,0.00012881,2]
[399262409,1766217039158,-151.0,0.00012881,2]
[399262410,1766217039167,-151.0,0.00012881,2]
[399262411,1766217039177,-151.0,0.00012881,2]
[399262412,1766217039186,-151.0,0.00012881,2]
[399262413,1766217039196,-151.0,0.00012881,2]
[399262414,1766217039205,-151.0,0.00012881,2]
[399262415,1766217039214,-151.0,0.00012881,2]
[399262416,1766217039224,-151.0,0.00012881,2]
[399262417,1766217039236,-151.0,0.00012881,2]
[399262418,1766217039245,-8543.7481194,0.00012961,2]
[399262419,1766217039254,-161.15031483,0.00012961,2]
[399262420,1766217039263,-7250.82383079,0.00013061,2]
[399262421,1766217039273,-389.4856281,0.00013061,2]
[399262422,1766217039283,-404.74,0.00013161,2]
[399262423,1766217039293,-8543.74811933,0.00013399,2]
[399262424,1766217039302,-299.99,0.00013429,2]
[399262425,1766217039312,-200.0,0.00013429,2]
[399262426,1766217039322,-200.0,0.00013429,2]
[399262427,1766217039331,-500.0,0.00013429,2]
[399262428,1766217039341,-322.96,0.00013458,2]
[399262429,1766217039350,-7250.82383076,0.00013488,2]
[399262430,1766217039360,-195.0,0.00013494,2]
[399262431,1766217039369,-1000.0,0.000135,2]
[399262432,1766217039379,-161.1503148,0.00013524,2]
[399262433,1766217039389,-16318.1962,0.00013573,2]
[399262434,1766217039399,-1000.0,0.00013573,2]
[399262435,1766217039408,-469.51043734,0.00013698,2]
[399262436,1766217039418,-500.0,0.00013698,2]
[399262437,1766217039427,-500.0,0.00013698,2]
[399262438,1766217039437,-500.0,0.00013698,2]
[399262439,1766217039446,-500.0,0.00013698,2]
[399262440,1766217039457,-500.0,0.00013698,2]
[399262441,1766217039468,-500.0,0.00013699,2]
[399262442,1766217039477,-562.52838856,0.00013699,2]
[399262443,1766217039487,-500.0,0.00013699,2]
[399262444,1766217039496,-200.0,0.00013736,2]
[399262445,1766217039505,-500.0,0.00013753,2]
[399262446,1766217039515,-500.0,0.00013773,2]
[399262447,1766217039524,-500.0,0.00013773,2]
[399262448,1766217039533,-8543.74811933,0.00013836,2]
[399262449,1766217039542,-404.74,0.00013854,2]
[399262450,1766217039551,-1000.0,0.00013914,2]
[399262451,1766217039560,-7250.82383076,0.00013914,2]
[399262452,1766217039577,-420.0,0.00013926,2]
[399262453,1766217039589,-250.0,0.00013957,2]
[399262454,1766217039598,-1852.42,0.00013989,2]
[399262455,1766217039608,-195.0,0.00014068,2]
[399262456,1766217039617,-300.0,0.00014068,2]
[399262457,1766217039626,-161.1503148,0.00014086,2]
[399262458,1766217039636,-300.0,0.00014098,2]
[399262459,1766217039647,-302.26771089,0.00014098,2]
[399262460,1766217039656,-250.0,0.00014098,2]
[399262461,1766217039666,-195.0,0.00014098,2]
[399262462,1766217039675,-300.0,0.00014098,2]
[399262463,1766217039684,-151.4761841,0.00014098,2]
[399262464,1766217039694,-250.0,0.00014099,2]
[399262465,1766217039703,-195.0,0.00014099,2]
[399262466,1766217039714,-300.0,0.00014099,2]
[399262467,1766217039723,-8543.74811933,0.00014274,2]
[399262468,1766217039732,-238.47,0.00014284,2]
[399262469,1766217039742,-1000.0,0.00014321,2]
[399262470,1766217039752,-1000.0,0.00014321,2]
[399262471,1766217039762,-500.0,0.00014329,2]
[399262472,1766217039772,-7250.82383076,0.00014341,2]
[399262473,1766217039782,-6476.59,0.00014477,2]
[399262474,1766217039791,-404.74,0.00014547,2]
[399262475,1766217039801,-504.0,0.0001463,2]
[399262476,1766217039811,-161.1503148,0.00014649,2]
[399262477,1766217039820,-1550.14356683,0.00014702,2]
[399262478,1766217039830,-8543.74811933,0.00014712,2]
[399262479,1766217039840,-7250.82383076,0.00014767,2]
[399262480,1766217039849,-501.29502757,0.00014843,2]
[399262481,1766217039859,-2097.3615942,0.00014849,2]
[399262482,1766217039868,-1609.34995974,0.00014868,2]
[399262483,1766217039878,-1500.0,0.00014868,2]
[399262484,1766217039889,-500.0,0.00014999,2]
[399262485,1766217039899,-500.0,0.00014999,2]
[399262486,1766217039910,-500.0,0.00014999,2]
[399262487,1766217039921,-500.0,0.00015014,2]
[399262488,1766217039931,-8543.74811933,0.00015149,2]
[399262489,1766217039941,-7250.82383076,0.00015194,2]
[399262490,1766217039950,-161.1503148,0.00015212,2]
[399262491,1766217039960,-404.74,0.0001524,2]
[399262492,1766217039971,-480.0,0.00015277,2]
[399262493,1766217039981,-150.0,0.00015288,2]
[399262494,1766217039990,-152.94375339,0.00015288,2]
[399262495,1766217039999,-152.70737667,0.00015288,2]
[399262496,1766217040009,-1000.0,0.00015459,2]
[399262497,1766217040018,-8543.74811933,0.00015587,2]
[399262498,1766217040031,-1009.0,0.000156,2]
[399262499,1766217040042,-500.0,0.00015616,2]
[399262500,1766217040054,-150.0,0.00015616,2]
[399262501,1766217040064,-494.0,0.00015616,2]
[399262502,1766217040074,-150.0,0.00015616,2]
[399262503,1766217040084,-150.0,0.00015616,2]
[399262504,1766217040094,-500.0,0.00015616,2]
[399262505,1766217040105,-500.0,0.00015616,2]
[399262506,1766217040115,-150.0,0.00015616,2]
[399262507,1766217040125,-151.21834691,0.00015616,2]
[399262508,1766217040135,-500.0,0.00015616,2]
[399262509,1766217040146,-500.0,0.00015616,2]
[399262510,1766217040156,-282.01458536,0.00015616,2]
[399262511,1766217040167,-150.0,0.00015616,2]
[399262512,1766217040176,-500.0,0.00015616,2]
[399262513,1766217040187,-500.0,0.00015616,2]
[399262514,1766217040198,-150.0,0.00015616,2]
[399262515,1766217040207,-150.0,0.00015616,2]
[399262516,1766217040217,-150.0,0.00015616,2]
[399262517,1766217040226,-500.0,0.00015616,2]
[399262518,1766217040239,-150.0,0.00015616,2]
[399262519,1766217040249,-500.0,0.00015616,2]